fUSD/lending_fUSD_20250325
["ID","MTS","AMOUNT","RATE_DAILY","PERIOD"]
[356643117,1742889043478,-987.40171632,0.00043836,31]
[356643118,1742889043488,-242.38782454,0.00043836,120]
[356643119,1742889043497,-1591.61224182,0.00043904,15]
[356643120,1742889043507,-151.35,0.0004399,2]
[356643121,1742889043516,-1000.0,0.00044,120]
[356643122,1742889043525,-3000.0,0.00044,2]
[356643123,1742889043534,-3000.0,0.00044,2]
[356643124,1742889043543,-3000.0,0.00044,2]
[356643125,1742889043553,-3000.0,0.00044,2]
[356643126,1742889043562,-3000.0,0.00044,2]
[356643127,1742889043572,-1456.82,0.00044,2]
[356643128,1742889043581,-249.77797017,0.00044026,15]
[356643129,1742889043590,-150.0,0.00044052,2]
[356643130,1742889043599,-189.11,0.00044239,2]
[356643131,1742889043609,-215.54,0.00044239,2]
[356643132,1742889043618,-35077.27326374,0.0004432,2]
[356643133,1742889043628,-152.0,0.00044527,5]
[356643134,1742889043637,-167.505348,0.00044892,2]
[356643135,1742889043646,-150.0,0.00044989,2]
[356643136,1742889043655,-442.55674136,0.00045,120]
[356643137,1742889043665,-28399.87569627,0.00045,32]
[356643138,1742889043674,-32061.86200615,0.00045,10]
[356643139,1742889043683,-189.50440244,0.00045,120]
[356643140,1742889043693,-480.1020986,0.00045,120]
[356643141,1742889043702,-802.12617523,0.00045,2]
[356643142,1742889043712,-897.02290039,0.00045,120]
[356643143,1742889043723,-166.98888889,0.00045,120]
[356643144,1742889043733,-1654.50613151,0.00045,15]
[356643145,1742889043743,-151.0,0.00045,14]
[356643146,1742889043752,-499.499,0.00045,14]
[356643147,1742889043762,-499.499,0.00045,14]
[356643148,1742889043771,-151.0,0.00045,14]
[356643149,1742889043782,-745.33,0.00045242,2]
[356643150,1742889043791,-177.58373874,0.000456,120]
[356643151,1742889043801,-150.0,0.00045927,2]
[356643152,1742889043811,-500.0,0.00046,120]
[356643153,1742889043820,-500.0,0.00046,120]
[356643154,1742889043829,-500.0,0.00046,120]
[356643155,1742889043839,-1000.0,0.00046,120]
[356643156,1742889043848,-500.0,0.00046,120]
[356643157,1742889043858,-150.0,0.00046,2]
[356643158,1742889043868,-2000.0,0.00046,2]
[356643159,1742889043878,-267.46,0.00046301,2]
[356643160,1742889043888,-152.572824,0.00046575,120]
[356643161,1742889043898,-152.572824,0.00046575,120]
[356643162,1742889043907,-652.21,0.00046575,2]
[356643163,1742889043916,-500.0,0.00046575,120]
[356643164,1742889043925,-500.0,0.00046575,7]
[356643165,1742889043935,-500.0,0.00046575,120]
[356643166,1742889043945,-500.0,0.00046575,120]
[356643167,1742889043955,-2000.0,0.00046575,2]
[356643168,1742889043964,-500.0,0.00046575,10]
[356643169,1742889043973,-500.0,0.00046575,2]
[356643170,1742889043984,-500.0,0.00046575,120]
[356643171,1742889043993,-500.0,0.00046575,120]
[356643172,1742889044002,-500.0,0.00046575,120]
[356643173,1742889044011,-516.42452112,0.00046575,120]
[356643174,1742889044021,-230.53094839,0.00046575,120]
[356643175,1742889044030,-500.0,0.00046575,120]
[356643176,1742889044039,-500.0,0.00046575,120]
[356643177,1742889044049,-500.0,0.00046575,2]
[356643178,1742889044058,-1227.42,0.00046575,120]
[356643179,1742889044067,-200.0,0.00046575,7]
[356643180,1742889044077,-500.0,0.00046575,120]
[356643181,1742889044086,-547.54,0.00046575,120]
[356643182,1742889044096,-3500.0,0.00046575,10]
[356643183,1742889044105,-500.0,0.00046575,120]
[356643184,1742889044115,-500.0,0.00046575,120]
[356643185,1742889044124,-500.0,0.00046575,120]
[356643186,1742889044134,-500.0,0.00046575,2]
[356643187,1742889044143,-500.0,0.00046575,2]
[356643188,1742889044153,-500.0,0.00046575,2]
[356643189,1742889044162,-500.0,0.00046575,2]
[356643190,1742889044172,-500.0,0.00046575,2]
[356643191,1742889044181,-500.0,0.00046575,2]
[356643192,1742889044190,-500.0,0.00046575,2]
[356643193,1742889044200,-500.0,0.00046575,2]
[356643194,1742889044210,-500.0,0.00046575,2]
[356643195,1742889044219,-500.0,0.00046575,2]
[356643196,1742889044229,-501.69479526,0.00046575,7]
[356643197,1742889044239,-500.0,0.00046575,2]
[356643198,1742889044248,-1367.56,0.00046575,120]
[356643199,1742889044258,-544.23,0.00046575,120]
[356643200,1742889044268,-500.0,0.00046575,2]
[356643201,1742889044277,-693.58,0.00046575,7]
[356643202,1742889044286,-500.0,0.00046575,2]
[356643203,1742889044296,-500.0,0.00046575,120]
[356643204,1742889044305,-500.0,0.00046575,120]
[356643205,1742889044317,-500.0,0.00046575,2]
[356643206,1742889044327,-500.0,0.00046575,120]
[356643207,1742889044336,-2670.93,0.00046575,120]
[356643208,1742889044345,-500.0,0.00046575,2]
[356643209,1742889044356,-500.0,0.00046575,120]
[356643210,1742889044366,-973.91,0.00046575,120]
[356643211,1742889044375,-500.0,0.00046575,2]
[356643212,1742889044385,-500.0,0.00046575,120]
[356643213,1742889044395,-548.36,0.00046575,7]
[356643214,1742889044404,-5049.4,0.00046575,2]
[356643215,1742889044413,-183.95,0.000466,120]
[356643216,1742889044423,-21631.4,0.000467,8]
[356643217,1742889044432,-21631.4,0.000467,8]
[356643218,1742889044442,-1259.01,0.000467,8]
[356643219,1742889044451,-21631.4,0.000467,8]
[356643220,1742889044461,-11629.76,0.000467,8]
[356643221,1742889044471,-4666.08,0.000467,8]
[356643222,1742889044481,-21694.01,0.000467,8]
[356643223,1742889044490,-152.0,0.00046734,6]
[356643224,1742889044500,-152.572824,0.00046849,120]
[356643225,1742889044510,-652.21,0.00046849,2]
[356643226,1742889044519,-500.0,0.00046849,120]
[356643227,1742889044528,-500.0,0.00046849,7]
[356643228,1742889044538,-500.0,0.00046849,120]
[356643229,1742889044547,-500.0,0.00046849,120]
[356643230,1742889044557,-2000.0,0.00046849,2]
[356643231,1742889044566,-500.0,0.00046849,10]
[356643232,1742889044576,-500.0,0.00046849,2]
[356643233,1742889044585,-500.0,0.00046849,120]
[356643234,1742889044594,-500.0,0.00046849,120]
[356643235,1742889044604,-468.52241819,0.00046849,2]
[356643236,1742889044613,-1227.42,0.00046849,120]
[356643237,1742889044623,-200.0,0.00046849,7]
[356643238,1742889044632,-500.0,0.00046849,120]
[356643239,1742889044641,-547.54,0.00046849,120]
[356643240,1742889044650,-2706.46061701,0.00046849,10]
[356643241,1742889044660,-500.0,0.00046849,120]
[356643242,1742889044670,-500.0,0.00046849,120]
[356643243,1742889044679,-500.0,0.00046849,120]
[356643244,1742889044688,-1367.56,0.00046849,120]
[356643245,1742889044697,-544.23,0.00046849,120]
[356643246,1742889044707,-500.0,0.00046849,2]
[356643247,1742889044717,-693.58,0.00046849,7]
[356643248,1742889044726,-168.2391886,0.00046849,2]
[356643249,1742889044735,-500.0,0.00046849,120]
[356643250,1742889044745,-500.0,0.00046849,120]
[356643251,1742889044754,-500.0,0.00046849,2]
[356643252,1742889044763,-500.0,0.00046849,120]
[356643253,1742889044773,-2670.93,0.00046849,120]
[356643254,1742889044782,-399.12996628,0.00046849,2]
[356643255,1742889044791,-500.0,0.00046849,120]
[356643256,1742889044800,-973.91,0.00046849,120]
[356643257,1742889044809,-500.0,0.00046849,2]
[356643258,1742889044818,-500.0,0.00046849,120]
[356643259,1742889044827,-548.36,0.00046849,7]
[356643260,1742889044837,-5049.4,0.00046849,2]
[356643261,1742889044846,-150.0,0.00046864,2]
[356643262,1742889044856,-500.0,0.00047,120]
[356643263,1742889044865,-1508.12371983,0.00047,120]
[356643264,1742889044875,-652.21,0.00047123,2]
[356643265,1742889044884,-500.0,0.00047123,120]
[356643266,1742889044894,-500.0,0.00047123,7]
[356643267,1742889044903,-500.0,0.00047123,120]
[356643268,1742889044912,-500.0,0.00047123,120]
[356643269,1742889044922,-2000.0,0.00047123,2]
[356643270,1742889044931,-500.0,0.00047123,10]
[356643271,1742889044941,-500.0,0.00047123,2]
[356643272,1742889044950,-500.0,0.00047123,120]
[356643273,1742889044959,-500.0,0.00047123,120]
[356643274,1742889044969,-1227.42,0.00047123,120]
[356643275,1742889044978,-200.0,0.00047123,7]
[356643276,1742889044988,-500.0,0.00047123,120]
[356643277,1742889044998,-547.54,0.00047123,120]
[356643278,1742889045007,-500.0,0.00047123,120]
[356643279,1742889045017,-500.0,0.00047123,120]
[356643280,1742889045026,-500.0,0.00047123,120]
[356643281,1742889045036,-1367.56,0.00047123,120]
[356643282,1742889045045,-544.23,0.00047123,120]
[356643283,1742889045055,-156.51851301,0.00047123,2]
[356643284,1742889045064,-693.58,0.00047123,7]
[356643285,1742889045074,-307.98955357,0.00047123,120]
[356643286,1742889045084,-500.0,0.00047123,120]
[356643287,1742889045093,-500.0,0.00047123,2]
[356643288,1742889045102,-500.0,0.00047123,120]
[356643289,1742889045112,-2670.93,0.00047123,120]
[356643290,1742889045122,-500.0,0.00047123,120]
[356643291,1742889045132,-973.91,0.00047123,120]
[356643292,1742889045142,-499.16727816,0.00047123,2]
[356643293,1742889045152,-500.0,0.00047123,120]
[356643294,1742889045162,-548.36,0.00047123,7]
[356643295,1742889045172,-5049.4,0.00047123,2]
[356643296,1742889045182,-636.0,0.0004719,30]
[356643297,1742889045191,-152.0,0.000472,60]
[356643298,1742889045200,-212.39137653,0.00047264,10]
[356643299,1742889045210,-1605.98,0.00047371,8]
[356643300,1742889045218,-179580.4,0.00047371,8]
[356643301,1742889045227,-13758.33,0.00047371,8]
[356643302,1742889045237,-3773.98,0.00047371,8]
[356643303,1742889045247,-652.21,0.00047397,2]
[356643304,1742889045256,-500.0,0.00047397,120]
[356643305,1742889045266,-513.62963429,0.00047397,7]
[356643306,1742889045275,-500.0,0.00047397,120]
[356643307,1742889045284,-500.0,0.00047397,120]
[356643308,1742889045293,-2000.0,0.00047397,2]
[356643309,1742889045303,-500.0,0.00047397,10]
[356643310,1742889045315,-512.38631943,0.00047397,2]
[356643311,1742889045325,-500.0,0.00047397,120]
[356643312,1742889045334,-500.0,0.00047397,120]
[356643313,1742889045345,-1227.42,0.00047397,120]
[356643314,1742889045354,-210.07943458,0.00047397,7]
[356643316,1742889045364,-500.0,0.00047397,120]
[356643317,1742889045374,-547.54,0.00047397,120]
[356643318,1742889045383,-500.0,0.00047397,120]
[356643319,1742889045393,-500.0,0.00047397,120]
[356643320,1742889045404,-500.0,0.00047397,120]
[356643321,1742889045413,-1367.56,0.00047397,120]
[356643322,1742889045423,-544.23,0.00047397,120]
[356643323,1742889045432,-693.58,0.00047397,7]
[356643324,1742889045441,-500.0,0.00047397,120]
[356643325,1742889045451,-500.0,0.00047397,2]
[356643326,1742889045461,-500.0,0.00047397,120]
[356643327,1742889045471,-2670.93,0.00047397,120]
[356643328,1742889045481,-500.0,0.00047397,120]
[356643329,1742889045490,-973.91,0.00047397,120]
[356643330,1742889045500,-500.0,0.00047397,120]
[356643331,1742889045510,-548.36,0.00047397,7]
[356643332,1742889045520,-5049.4,0.00047397,2]
[356643333,1742889045530,-217.032505,0.00047498,120]
[356643334,1742889045540,-745.33,0.00047506,2]
[356643335,1742889045550,-314.1081863,0.0004752,4]
[356643336,1742889045559,-652.21,0.00047671,2]
[356643337,1742889045669,-500.0,0.00047671,120]
[356643338,1742889045679,-500.0,0.00047671,120]
[356643339,1742889045688,-500.0,0.00047671,120]
[356643340,1742889045707,-2013.4096586,0.00047671,2]
[356643341,1742889045717,-500.0,0.00047671,10]
[356643342,1742889045727,-500.0,0.00047671,120]
[356643343,1742889045737,-500.0,0.00047671,120]
[356643344,1742889045747,-1227.42,0.00047671,120]
[356643345,1742889045757,-500.0,0.00047671,120]
[356643346,1742889045767,-547.54,0.00047671,120]
[356643347,1742889045777,-500.0,0.00047671,120]
[356643348,1742889045788,-500.0,0.00047671,120]
[356643349,1742889045797,-500.0,0.00047671,120]
[356643350,1742889045807,-1367.56,0.00047671,120]
[356643351,1742889045816,-544.23,0.00047671,120]
[356643352,1742889045826,-693.58,0.00047671,7]
[356643353,1742889045837,-500.0,0.00047671,120]
[356643354,1742889045847,-500.0,0.00047671,2]
[356643355,1742889045856,-500.0,0.00047671,120]
[356643356,1742889045867,-2670.93,0.00047671,120]
[356643357,1742889045877,-500.0,0.00047671,120]
[356643358,1742889045886,-973.91,0.00047671,120]
[356643359,1742889045896,-500.0,0.00047671,120]
[356643360,1742889045906,-548.36,0.00047671,7]
[356643361,1742889045916,-5049.4,0.00047671,2]
[356643362,1742889045925,-150.0,0.00047674,7]
[356643363,1742889045935,-636.0,0.00047676,30]
[356643364,1742889045945,-500.0,0.00047699,2]
[356643365,1742889045954,-40714.5913405,0.000477,34]
[356643366,1742889045964,-150.0,0.00047798,7]
[356643367,1742889045974,-150.0,0.00047801,2]
[356643368,1742889045985,-150.0,0.00047866,7]
[356643369,1742889045996,-150.0,0.00047868,7]
[356643370,1742889046006,-150.0,0.00047895,7]
[356643371,1742889046017,-158.36,0.000479,120]
[356643372,1742889046026,-2440.24429769,0.000479,14]
[356643373,1742889046036,-1179.99,0.000479,2]
[356643374,1742889046045,-193.19346779,0.000479,120]
[356643375,1742889046055,-160.152643,0.000479,120]
[356643376,1742889046064,-1591.61224182,0.000479,15]
[356643377,1742889046074,-182.0453235,0.000479,30]
[356643378,1742889046084,-499.499,0.000479,14]
[356643379,1742889046096,-499.499,0.000479,14]
[356643380,1742889046107,-151.0,0.000479,14]
[356643381,1742889046117,-249.77797017,0.000479,15]
[356643382,1742889046126,-278.69665944,0.000479,2]
[356643383,1742889046137,-2442.2524849,0.000479,2]
[356643384,1742889046147,-636.11535306,0.000479,10]
[356643385,1742889046156,-23569.9385347,0.000479,2]
[356643387,1742889046166,-652.21,0.00047945,2]
[356643388,1742889046175,-500.0,0.00047945,120]
[356643389,1742889046185,-500.0,0.00047945,120]
[356643390,1742889046194,-500.0,0.00047945,120]
[356643391,1742889046203,-298.8057715,0.00047945,10]
[356643392,1742889046213,-500.0,0.00047945,120]
[356643393,1742889046222,-1000.0,0.00047945,120]
[356643394,1742889046232,-1000.0,0.00047945,120]
[356643395,1742889046241,-1000.0,0.00047945,120]
[356643396,1742889046250,-1000.0,0.00047945,120]
[356643397,1742889046259,-1000.0,0.00047945,120]
[356643398,1742889046269,-1000.0,0.00047945,120]
[356643399,1742889046278,-1000.0,0.00047945,120]
[356643400,1742889046287,-1000.0,0.00047945,120]
[356643401,1742889046297,-1000.0,0.00047945,120]
[356643402,1742889046307,-1000.0,0.00047945,120]
[356643403,1742889046318,-1000.0,0.00047945,120]
[356643404,1742889046328,-1000.0,0.00047945,120]
[356643405,1742889046337,-523.42229204,0.00047945,120]
[356643406,1742889046346,-500.0,0.00047945,120]
[356643407,1742889046357,-1227.42,0.00047945,120]
[356643408,1742889046367,-275.653152,0.00047945,14]
[356643409,1742889046376,-500.0,0.00047945,120]
[356643410,1742889046387,-547.54,0.00047945,120]
[356643411,1742889046396,-500.0,0.00047945,120]
[356643412,1742889046406,-500.0,0.00047945,120]
[356643413,1742889046416,-500.0,0.00047945,120]
[356643414,1742889046426,-1367.56,0.00047945,120]
[356643415,1742889046435,-544.23,0.00047945,120]
[356643416,1742889046444,-693.58,0.00047945,7]
[356643417,1742889046453,-500.0,0.00047945,120]
[356643418,1742889046463,-500.0,0.00047945,2]
[356643419,1742889046472,-500.0,0.00047945,120]
[356643420,1742889046482,-2670.93,0.00047945,120]
[356643421,1742889046492,-500.0,0.00047945,120]
[356643422,1742889046501,-973.91,0.00047945,120]
[356643423,1742889046510,-500.0,0.00047945,120]
[356643424,1742889046519,-548.36,0.00047945,7]
[356643425,1742889046528,-5049.4,0.00047945,2]
[356643426,1742889046537,-150.0,0.00047947,7]
[356643427,1742889046546,-150.0,0.00047957,7]
[356643428,1742889046555,-500.0,0.00047989,2]
[356643429,1742889046564,-500.0,0.00047989,3]
[356643430,1742889046573,-500.0,0.00047989,120]
[356643431,1742889046582,-500.0,0.00047999,2]
[356643432,1742889046591,-500.0,0.00047999,2]
[356643433,1742889046600,-500.0,0.00047999,2]
[356643434,1742889046609,-500.0,0.00047999,2]
[356643435,1742889046619,-500.0,0.00047999,2]
[356643436,1742889046628,-500.0,0.00047999,2]
[356643437,1742889046637,-500.0,0.00047999,2]
[356643438,1742889046647,-500.0,0.00047999,2]
[356643439,1742889046655,-500.0,0.00047999,2]
[356643440,1742889046665,-511.78911098,0.00047999,2]
[356643441,1742889046674,-999.999999,0.00047999,60]
[356643442,1742889046683,-285.03784669,0.00048,120]
[356643443,1742889046692,-3859007.83107419,0.00048,7]
[356643444,1742889046765,-748.43804362,0.00048,7]
[356643445,1742889046776,-518.37168915,0.00048,7]
[356643446,1742889047205,-2150.60600428,0.00048,7]
[356643447,1742889047222,-3868.2,0.00048,7]
[356643448,1742889047770,-438.02540688,0.00048,7]
[356643449,1742889047788,-368.20243316,0.000479,2]
[356643450,1742889047799,-700.20276168,0.00048,7]
[356643451,1742889116212,-300.0,0.00046575,120]
[356643452,1742889131269,-200.0,0.00046575,120]
[356643453,1742889131293,-81.1640407,0.00046575,120]
[356643454,1742889143602,-369.67813049,0.00043836,15]
[356643455,1742889153418,-200.16644563,0.00043617,6]
[356643456,1742889154500,-418.8359593,0.00046575,120]
[356643457,1742889154524,-81.1640407,0.00046575,120]
[356643458,1742889156736,-299.83355437,0.00046575,120]
[356643459,1742889164097,-119.00240493,0.00046575,120]
[356643460,1742889164125,-32.52640295,0.00046575,120]
[356643461,1742889169843,-334.3589088,0.00046575,120]
[356643462,1742889174721,-150.0,0.000389,2]
[356643463,1742889180897,-133.11468825,0.00046575,120]
[356643464,1742889180921,-116.89113279,0.00046575,120]
[356643465,1742889186070,-268.4271593,0.00046575,120]
[356643466,1742889190558,-114.68170791,0.00046575,120]
[356643467,1742889190581,-57.41875339,0.00046575,120]
[356643468,1742889196385,-300.0,0.00046575,120]
[356643469,1742889212934,-152.91151117,0.00031546,10]
[356643470,1742889217471,-281.1640407,0.00031546,10]
[356643471,1742889220861,-351.5187988,0.00031546,10]
[356643472,1742889296587,-173.14,0.00046575,120]
[356643473,1742889300899,-186.03,0.00046575,120]
[356643474,1742889302498,-150.0,0.00031546,10]
[356643475,1742889306682,-150.0036742,0.00046575,120]
[356643476,1742889331370,-187.40607384,0.00031546,10]
[356643477,1742889336332,-122.35827549,0.00031546,10]
[356643478,1742889336356,-145.55514672,0.000388,2]
[356643481,1742889405693,-274.04701555,0.000388,2]
[356643482,1742889405718,-19.23834067,0.000389,2]
[356643483,1742889447260,-161.44191272,0.000389,2]
[356643484,1742889452227,-150.0,0.000389,2]
[356643485,1742889486250,-160.65,0.000433,5]
[356643486,1742889501847,-182.8084621,0.000465,120]
[356643487,1742889522154,-152.7422791,0.000389,2]
[356643490,1742890231543,-151.24,0.00026849,2]
[356643491,1742890231553,-279.73477486,0.000388,2]
[356643492,1742890231562,-196.60808023,0.000389,2]
[356643493,1742890231595,-626.59296356,0.000389,2]
[356643494,1742890231606,-255.97559429,0.000389,2]
[356643495,1742890231753,-287.40082943,0.000389,2]
[356643496,1742890231763,-111.67157816,0.000401,2]
[356643497,1742890231775,-48.97842184,0.000401,2]
[356643498,1742890231784,-150.0,0.000402,2]
[356643499,1742890231793,-167.79157816,0.000408,2]
[356643500,1742890231809,-832.20842184,0.000408,2]
[356643501,1742890231818,-467.79157816,0.000416,2]
[356643502,1742890231830,-1348.10131452,0.000416,2]
[356643503,1742890231842,-184.10710732,0.000416,2]
[356643504,1742890231851,-150.0,0.00041747,2]
[356643505,1742890231863,-104.15213545,0.000418,2]
[356643506,1742890231875,-175.58263939,0.000418,2]
[356643507,1742890231885,-152.742279,0.00042685,2]
[356643508,1742890231895,-98.04152394,0.0004279,2]
[356643509,1742890231908,-51.95847606,0.0004279,2]
[356643510,1742890231918,-212.39137653,0.000429,9]
[356643511,1742890231927,-606.45,0.00044005,2]
[356643512,1742890231936,-656.65067092,0.000444,2]
[356643513,1742890231948,-417.34932908,0.000444,2]
[356643514,1742890231958,-279.73477484,0.000448,2]
[356643515,1742890231968,-255.24588608,0.000449,72]
[356643516,1742890231980,-119.85211392,0.000449,72]
[356643517,1742890231990,-150.0,0.00045458,2]
[356643518,1742890232001,-215.58,0.00045591,120]
[356643519,1742890232011,-150.0,0.00045599,120]
[356643520,1742890232021,-65.68288608,0.00045642,5]
[356643521,1742890232033,-234.31711392,0.00045642,5]
[356643522,1742890232042,-1770.99993587,0.00045644,10]
[356643523,1742890232052,-250.0,0.00045697,2]
[356643524,1742890232061,-195.52795021,0.00045868,2]
[356643527,1742890237486,-500.0,0.00045868,2]
[356643528,1742890237541,-304.47204979,0.00045868,2]
[356643529,1742890237551,-656.16839604,0.00045897,2]
[356643530,1742890237562,-615.03160396,0.00045897,2]
[356643531,1742890237571,-868.08361754,0.00045976,7]
[356643532,1742890237581,-23900.0,0.00045977,2]
[356643533,1742890237590,-500.0,0.00045998,120]
[356643534,1742890237600,-500.0,0.00045998,120]
[356643535,1742890237609,-500.0,0.00045998,120]
[356643536,1742890237618,-500.0,0.00045998,120]
[356643537,1742890237628,-500.0,0.00045998,120]
[356643538,1742890237637,-500.0,0.00045998,120]
[356643539,1742890237646,-500.0,0.00045998,120]
[356643540,1742890237655,-500.0,0.00045998,120]
[356643541,1742890237664,-500.0,0.00045998,120]
[356643542,1742890237674,-500.0,0.00045998,120]
[356643543,1742890237683,-500.0,0.00045998,120]
[356643544,1742890237692,-500.0,0.00045998,120]
[356643545,1742890237701,-627.96017455,0.00045998,120]
[356643546,1742890237711,-500.0,0.00045998,120]
[356643547,1742890237720,-500.0,0.00045998,120]
[356643548,1742890237734,-500.0,0.00045998,120]
[356643549,1742890237743,-500.0,0.00045998,120]
[356643550,1742890237752,-500.0,0.00045998,120]
[356643551,1742890237761,-500.0,0.00045998,120]
[356643552,1742890237771,-500.0,0.00045998,120]
[356643553,1742890237780,-500.0,0.00045998,120]
[356643554,1742890237789,-500.0,0.00045998,120]
[356643555,1742890237797,-249.31375431,0.00045998,120]
[356643556,1742890237810,-250.68624569,0.00045998,120]
[356643557,1742890237819,-380.00444002,0.00045998,120]
[356643558,1742890237830,-119.99555998,0.00045998,120]
[356643559,1742890237839,-500.0,0.00045998,120]
[356643560,1742890237849,-500.0,0.00045998,120]
[356643561,1742890237858,-500.0,0.00045998,120]
[356643563,1742890237867,-70.77028785,0.00045998,120]
[356643565,1742890237878,-429.22971215,0.00045998,120]
[356643567,1742890237887,-15.42554166,0.00045999,2]
[356643570,1742890237899,-1638.65078962,0.00045999,2]
[356643572,1742890237910,-2292.245,0.00045999,2]
[356643574,1742890237925,-9728.13633588,0.00045999,2]
[356643615,1742890240226,-0.03533144,0.00045999,2]
[356643616,1742890240238,-35990.29172697,0.00045999,2]
[356643617,1742890240249,-2839.47911004,0.00045999,2]
[356643618,1742890240269,-646.59616439,0.00045999,2]
[356643620,1742890240278,-2143.40383561,0.000461,14]
[356643621,1742890240294,-974.55526154,0.000461,14]
[356643623,1742890241186,-183.26898878,0.000461,14]
[356643632,1742890242829,-865.55,0.000461,14]
[356643633,1742890243534,-167.73673983,0.000461,14]
[356643635,1742890245905,-293.71816159,0.000461,14]
[356643636,1742890245918,-10215.24855417,0.000461,14]
[356643637,1742890266098,-157.9077209,0.000465,120]
[356643638,1742890280253,-151.6906,0.000465,120]
[356643639,1742890313713,-293.28535622,0.000465,120]
[356643640,1742890318059,-173.14,0.000465,120]
[356643642,1742890323692,-152.91151117,0.000465,120]
[356643643,1742890356589,-157.907721,0.00045869,2]
[356643644,1742890356610,-42.092279,0.000461,14]
[356643646,1742891108613,86050.0,0.00012,2]
[356643647,1742891109290,-158.38440415,0.00012,2]
[356643648,1742891156919,-244.78187335,0.00012,2]
[356643649,1742891162143,-161.9231138,0.00012,2]
[356643651,1742891169132,-150.98995775,0.00012,2]
[356643652,1742891171422,-152.91151117,0.00012,2]
[356643653,1742891176433,-152.91151117,0.000199,3]
[356643654,1742891182613,-216.07485828,0.00012,2]
[356643655,1742891189607,-257.51355892,0.00012,2]
[356643656,1742891195004,-292.5542481,0.00012,2]
[356643657,1742891202294,-202.43854032,0.00012,2]
[356643658,1742891209352,-181.09745514,0.00012,2]
[356643659,1742891223263,-150.0,0.00011999,2]
[356643660,1742891223291,-3.76,0.00012,2]
[356643661,1742891227444,-152.91151117,0.00012,2]
[356643662,1742891230961,-217.81882725,0.00012,2]
[356643663,1742891247932,-152.91151117,0.00012,2]
[356643664,1742891278106,319482.93408992,0.0001,2]
[356643665,1742891278136,492300.13727767,0.0001,2]
[356643666,1742891278162,1426551.23994838,0.0001,2]
[356643667,1742891288406,1144.9357591,9e-05,2]
[356643668,1742891290798,-253.59912675,0.00012,2]
[356643669,1742891294412,-152.25687035,0.00012,2]
[356643670,1742891316222,-434.57342221,0.00025,7]
[356643674,1742891343323,-168.2116392,0.00012,2]
[356643683,1742891399905,-2313.8894,0.00012,2]
[356643687,1742891418627,-188.0768862,0.00025,7]
[356643693,1742891431771,-866.35,0.0001194,2]
[356643695,1742891431783,-2554.722945,0.0001194,2]
[356643697,1742891431792,-463691.38273607,0.00012,2]
[356643698,1742891431827,-804.79,0.00012,2]
[356643699,1742891431838,-816.84952168,0.00012,2]
[356643700,1742891431883,-2326.65286154,0.00012,2]
[356643701,1742891431894,-3941.19353237,0.00012,2]
[356643702,1742891431939,-433.57557761,0.00012,2]
[356643717,1742891432549,-158.24435286,0.00012,2]
[356643726,1742891437763,-30254.34879691,0.00012,2]
[356643727,1742891437922,-715.96939773,0.00012,2]
[356643731,1742891438454,-234.57342221,0.00012,2]